bitfinex/quotes_ETHUSD_20251117
["timestamp","ask_amount","ask_price","bid_price","bid_amount"]
[1763419993839,0.0592,3035.0,3034.9,2.25737866]
[1763419995178,0.002,3035.2,3034.9,3.19387866]
[1763419995484,0.002,3035.2,3034.9,2.70597866]
[1763419996001,0.4966,3035.2,3035.0,0.66915944]
[1763419996201,0.002,3035.2,3035.0,2.4376381]
[1763419996779,0.0549,3035.1,3035.0,2.4376381]
[1763419998565,0.516,3035.1,3035.0,2.4376381]
[1763419999135,0.0549,3035.1,3035.0,2.4376381]
[1763420004733,0.0569,3035.1,3035.0,2.4376381]
[1763420006353,0.002,3035.1,3035.0,1.63005944]
[1763420006523,0.002,3035.1,3035.0,2.43098468]
[1763420009346,0.002,3035.1,3035.0,3.33797732]
[1763420009941,0.002,3035.1,3035.0,12.07506841]
[1763420010342,0.002,3035.1,3035.0,9.71617029]
[1763420011135,0.002,3035.1,3035.0,9.25197029]
[1763420011439,0.002,3035.1,3035.0,8.45104505]
[1763420012536,0.002,3035.1,3035.0,8.91524505]
[1763420016770,0.002,3035.1,3035.0,8.45104505]
[1763420017862,0.0672,3035.1,3035.0,7.95434505]
[1763420018763,0.002,3035.1,3035.0,7.95434505]
[1763420019236,0.0713,3035.1,3035.0,7.95434505]
[1763420019438,0.5472,3035.1,3035.0,7.95434505]
[1763420019648,0.5472,3035.1,3035.0,3.34367637]
[1763420020668,0.5472,3035.1,3035.0,0.66915944]
[1763420021541,0.002,3035.1,3035.0,9.2808767]
[1763420021773,0.002,3035.1,3035.0,9.17005864]
[1763420022178,0.002,3035.1,3035.0,2.79186567]
[1763420023053,0.002,3035.1,3035.0,1.13515944]
[1763420023658,0.002,3035.1,3035.0,1.63025944]
[1763420024563,0.002,3035.1,3035.0,1.13515944]
[1763420027090,0.0672,3035.1,3035.0,0.66915944]
[1763420027300,0.5472,3035.1,3035.0,2.43739648]
[1763420030655,0.5472,3035.1,3035.0,0.66915944]
[1763420034489,0.0672,3035.1,3035.0,0.66915944]
[1763420036505,0.002,3035.1,3035.0,7.51335241]
[1763420036662,0.002,3035.1,3035.0,7.04735241]
[1763420037173,0.0672,3035.1,3035.0,0.66915944]
[1763420041597,0.002,3035.1,3035.0,8.00845241]
[1763420042297,0.002,3035.1,3035.0,7.51335241]
[1763420042798,0.002,3035.1,3035.0,9.28158945]
[1763420043298,0.002,3035.1,3035.0,10.7544584]
[1763420044968,0.002,3035.1,3035.0,8.98622136]
[1763420046507,0.002,3035.1,3035.0,9.398114]
[1763420046705,0.002,3035.1,3035.0,9.870814]
[1763420048408,0.002,3035.1,3035.0,12.22971212]
[1763420050010,0.002,3035.1,3035.0,9.870814]
[1763420051621,0.002,3035.1,3035.0,10.276318]
[1763420051820,0.002,3035.1,3035.0,2.76296559]
[1763420052019,0.00017694,3035.1,3035.0,9.63970748]
[1763420052332,0.002,3035.3,3035.1,5.35229664]
[1763420052538,0.002,3035.3,3035.2,19.87607725]
[1763420053031,0.002,3035.5,3035.3,1.31249664]
[1763420053233,0.002,3035.5,3035.4,8.15628961]
[1763420053534,0.002,3035.5,3035.4,8.62898961]
[1763420053906,0.6614,3037.0,3035.5,1.77809664]
[1763420054099,0.4852,3036.9,3035.7,16.88804002]
[1763420054300,0.1762,3037.0,3035.7,14.53448258]
[1763420054520,0.1762,3037.0,3035.7,15.00718258]
[1763420054833,0.1762,3037.0,3035.7,15.49238258]
[1763420055912,0.6614,3037.0,3035.7,15.49238258]
[1763420056136,0.6614,3037.0,3035.7,17.84266118]
[1763420056299,0.6614,3037.0,3035.7,19.78539709]
[1763420056729,0.6614,3037.0,3035.7,17.43511849]
[1763420057038,0.4852,3036.9,3035.7,17.43511849]
[1763420057335,0.4852,3036.9,3035.7,19.78398151]
[1763420058036,0.6263,3037.0,3035.7,23.68398151]
[1763420058231,0.6263,3037.0,3035.7,21.33511849]
[1763420058938,0.6263,3037.0,3035.9,0.405504]
[1763420059231,0.17248405,3037.3,3035.9,0.405504]
[1763420059232,0.4501,3037.2,3036.8,6.37819297]
[1763420059549,0.452,3036.9,3036.8,6.37819297]
[1763420059745,0.17248405,3037.3,3036.8,6.37819297]
[1763420059746,0.17248405,3037.3,3036.9,0.90699264]
[1763420059961,0.17248405,3037.3,3036.8,6.37819297]
[1763420059962,0.62258405,3037.3,3037.0,6.37819297]
[1763420060150,0.62258405,3037.3,3037.0,0.4501]
[1763420060307,0.4501,3037.2,3037.0,0.4501]
[1763420060501,0.452,3037.1,3037.0,0.4501]
[1763420061006,0.9021,3037.1,3037.0,0.4501]
[1763420062236,0.9021,3037.1,3035.9,0.90699264]
[1763420062412,0.4501,3037.0,3036.8,0.9021]
[1763420062809,0.5517,3036.9,3036.8,0.9021]
[1763420063234,1.0018,3036.9,3035.7,2.66821274]
[1763420063539,0.5498,3036.9,3035.7,2.66821274]
[1763420063722,0.4501,3036.8,3035.8,0.99178635]
[1763420064112,0.452,3035.9,3035.8,0.99178635]
[1763420065516,0.6404,3035.9,3035.8,0.99178635]
[1763420065909,1.0905,3035.9,3035.8,0.99178635]
[1763420073079,1.0905,3035.9,3035.8,0.99278635]
[1763420076037,1.496004,3035.9,3035.4,0.001]
[1763420076247,0.172,3035.5,3035.4,0.001]
[1763420076566,0.6663,3035.5,3035.4,0.001]
[1763420096097,0.172,3035.5,3035.4,0.001]
[1763420096898,0.6663,3035.5,3035.4,0.001]
[1763420102116,0.172,3035.5,3035.4,0.001]
[1763420102318,0.97562505,3035.5,3035.4,0.001]
[1763420102682,0.48132505,3035.5,3035.4,0.001]
[1763420102901,0.97562505,3035.5,3035.4,0.001]
[1763420107388,0.97645094,3035.5,3035.4,0.001]
[1763420107603,0.48215094,3035.5,3035.4,0.001]
[1763420113493,0.97675094,3035.5,3035.4,0.001]
[1763420115907,0.405504,3035.4,3035.1,0.001]
[1763420116109,1.31249664,3035.1,3035.0,0.001]
[1763420116439,1.79694758,3035.1,3035.0,0.001]
[1763420116636,3.10838372,3035.1,3035.0,0.001]
[1763420118859,1.31249664,3034.7,3034.5,0.001]
[1763420119137,1.10465494,3034.6,3034.5,0.001]
[1763420119315,1.10465494,3034.6,3034.2,0.001]
[1763420119316,0.405504,3034.5,3034.2,0.001]
[1763420119520,7.88891045,3034.3,3034.2,0.001]
[1763420119722,8.62569596,3034.3,3034.2,0.001]
[1763420119931,9.09349596,3034.3,3034.2,0.001]
[1763420122144,9.09349596,3034.3,3033.8,0.001]
[1763420122346,8.08321045,3033.9,3033.8,0.001]
[1763420122533,7.68391045,3033.6,3033.5,0.001]
[1763420122738,9.25769596,3033.6,3033.5,0.001]
[1763420122941,9.27914295,3033.6,3033.5,0.001]
[1763420129252,8.96899201,3033.6,3033.5,0.001]
[1763420129424,9.86609121,3033.6,3033.5,0.001]
[1763420129853,9.43945664,3033.6,3033.5,0.001]
[1763420133881,9.74624221,3033.6,3033.5,0.001]
[1763420134062,9.43945664,3033.6,3033.5,0.001]
[1763420134360,8.97165664,3033.6,3033.5,0.001]
[1763420137245,9.27863602,3033.6,3033.5,0.001]
[1763420137468,8.97165664,3033.6,3033.5,0.001]
[1763420138166,2.17329184,3033.6,3033.5,0.001]
[1763420140535,1.80409184,3033.6,3033.5,0.5]
[1763420141350,2.1116609,3033.6,3033.5,0.5]
[1763420143243,1.2145617,3033.6,3033.5,0.5]
[1763420143896,1.7073617,3033.6,3033.5,0.001]
[1763420144393,2.5658657,3033.6,3033.5,0.001]
[1763420146190,1.65887306,3033.6,3033.5,0.001]
[1763420147093,1.65887306,3033.6,3033.5,0.5]
[1763420147094,0.30908319,3033.6,3033.5,0.5]
[1763420147258,0.30908319,3033.6,3033.5,0.9626]
[1763420147663,0.002,3033.8,3033.5,0.9626]
[1763420147864,0.002,3033.8,3033.7,0.499]
[1763420148268,0.002,3034.2,3033.7,1.86859264]
[1763420148476,0.002,3034.2,3034.1,0.6896]
[1763420148890,0.002,3034.2,3034.1,1.1522]
[1763420149101,0.002,3034.2,3034.1,1.46152517]
[1763420149807,0.002,3034.5,3034.2,0.90699264]
[1763420149971,0.002,3034.5,3034.4,0.499]
[1763420150159,0.002,3034.5,3034.4,0.68585926]
[1763420150359,0.002,3034.5,3034.4,1.14845926]
[1763420150884,0.002,3034.5,3034.4,1.1814147]
[1763420151584,0.002,3034.5,3034.4,1.14845926]
[1763420154889,0.002,3034.5,3034.4,2.14078363]
[1763420161675,0.002,3034.5,3034.4,1.67818363]
[1763420162105,0.002,3034.5,3034.4,2.14078363]
[1763420162910,0.002,3034.5,3034.4,1.49132437]
[1763420163105,0.002,3034.5,3034.1,0.1916]
[1763420163106,0.4948,3034.5,3034.1,0.1916]
[1763420163415,0.4948,3034.5,3034.1,0.454]
[1763420163416,0.9478,3034.5,3034.1,0.454]
[1763420164818,0.4948,3034.5,3034.1,0.454]
[1763420165021,0.9478,3034.5,3034.1,0.454]
[1763420165395,0.9478,3034.5,3034.1,0.001]
[1763420166999,0.4948,3034.5,3034.1,0.001]
[1763420167200,0.4618,3034.4,3034.1,0.001]
[1763420168530,0.002,3034.5,3034.1,0.001]
[1763420168830,0.4638,3034.5,3034.1,0.001]
[1763420169031,0.89043457,3034.5,3034.1,0.001]
[1763420169503,0.4618,3034.4,3034.1,0.001]
[1763420170519,0.4674,3034.2,3034.1,0.001]
[1763420171229,2.55703332,3034.2,3034.1,0.001]
[1763420173107,8.94989412,3034.2,3034.1,0.001]
[1763420173308,8.22120458,3034.2,3034.1,0.001]
[1763420175738,8.5300112,3034.2,3034.1,0.001]
[1763420176953,8.9355152,3034.2,3034.1,0.001]
[1763420182821,2.5426544,3034.2,3034.1,0.001]
[1763420183020,3.43577893,3034.2,3034.1,0.001]
[1763420183228,2.56847493,3034.2,3034.1,0.001]
[1763420183428,1.6753504,3034.2,3034.1,0.001]
[1763420184561,2.1638504,3034.2,3034.1,0.001]
[1763420188067,1.6753504,3034.2,3034.1,0.001]
[1763420189845,0.30880662,3034.2,3034.1,1.134]
[1763420190046,0.31080662,3034.4,3034.1,1.134]
[1763420190280,0.002,3034.4,3034.3,0.4913]
[1763420190777,0.002,3034.4,3034.3,0.954]
[1763420191947,0.002,3034.4,3034.3,1.26340869]
[1763420198571,0.101845,3034.9,3034.3,1.26340869]
[1763420198774,0.18851027,3035.0,3034.4,0.4766]
[1763420198973,0.002,3035.2,3034.4,0.976]
[1763420199275,0.002,3034.8,3034.4,0.976]
[1763420199874,0.002,3034.8,3034.5,0.4994]
[1763420201795,0.002,3034.8,3034.1,0.18]
[1763420202113,0.002,3034.8,3034.2,0.4994]
[1763420205920,0.002,3034.8,3034.7,0.4766]
[1763420206123,0.002,3034.8,3034.1,0.001]
[1763420206425,1.31249664,3034.5,3034.1,0.001]
[1763420206721,0.4794,3034.2,3034.1,0.001]
[1763420206910,0.405504,3034.5,3034.1,0.001]
[1763420207090,0.884904,3034.5,3034.1,0.001]
[1763420207294,0.405504,3034.5,3034.1,0.001]
[1763420207512,0.4814,3034.8,3034.1,0.001]
[1763420207720,0.002,3034.8,3034.7,0.4766]
[1763420208095,0.002,3034.8,3034.7,0.976]
[1763420209539,0.002,3034.8,3034.7,0.4766]
[1763420209908,0.002,3034.8,3034.7,0.976]
[1763420210609,0.002,3034.8,3034.7,0.4766]
[1763420210838,0.71666448,3034.8,3034.7,0.4766]
[1763420211539,0.71666448,3034.8,3034.7,0.976]
[1763420211840,0.71666448,3034.8,3034.7,0.4766]
[1763420212033,0.71666448,3034.8,3034.7,0.976]
[1763420212944,0.71675558,3034.8,3034.7,0.976]
[1763420215631,0.71675558,3034.8,3034.2,0.4994]
[1763420215632,0.405504,3034.7,3034.2,0.4994]
[1763420215828,0.405504,3034.5,3034.1,0.1964]
[1763420216036,0.30925158,3034.4,3034.1,0.1964]
[1763420216234,0.30925158,3034.3,3034.1,0.6958]
[1763420216423,0.405504,3034.5,3034.1,0.6958]
[1763420216424,0.30925158,3034.2,3034.1,0.6958]
[1763420216622,0.30925158,3034.2,3034.1,0.1964]
[1763420216828,0.30925158,3034.2,3034.1,0.673]
[1763420217219,0.30925158,3034.2,3034.1,1.1724]
[1763420217744,0.30925158,3034.4,3034.1,1.1724]
[1763420217940,0.30925158,3034.3,3034.2,0.4994]
[1763420218342,0.30925158,3034.3,3034.2,0.976]
[1763420219918,0.3094802,3034.3,3034.2,0.976]
[1763420220617,0.3094802,3034.3,3034.2,0.4766]
[1763420221247,0.3094802,3034.3,3034.1,0.001]
[1763420221457,1.31249664,3034.6,3034.2,0.4766]
[1763420221749,0.405504,3034.4,3034.2,0.4766]
[1763420221955,0.71494366,3034.3,3034.2,0.4766]
[1763420222545,0.405504,3034.2,3034.1,0.001]
[1763420222751,0.71494366,3034.2,3034.1,0.001]
[1763420222922,1.19434366,3034.2,3034.1,0.001]
[1763420223323,1.95243711,3034.2,3034.1,0.001]
[1763420224953,1.47303711,3034.2,3034.1,0.001]
[1763420229253,1.92453711,3034.2,3034.1,0.001]
[1763420230333,1.92410757,3034.2,3034.1,0.001]
[1763420233332,2.38215923,3034.2,3034.1,0.001]
[1763420233749,1.31249664,3034.1,3034.0,0.001]
[1763420233958,10.66408297,3034.1,3034.0,0.001]
[1763420234531,0.405504,3034.0,3033.8,0.001]
[1763420234735,1.65196578,3033.9,3033.8,0.001]
[1763420234929,2.3639985,3033.9,3033.8,0.001]
[1763420235374,3.72849842,3033.9,3033.8,0.001]
[1763420235551,4.97744613,3033.9,3033.8,0.001]
[1763420235960,4.52014356,3033.9,3033.8,0.001]
[1763420238153,4.0620919,3033.9,3033.8,0.001]
[1763420239164,3.6565879,3033.9,3033.8,0.001]
[1763420239569,4.0620919,3033.9,3033.8,0.001]
[1763420240365,4.52014356,3033.9,3033.8,0.001]
[1763420243353,4.0620919,3033.9,3033.8,0.001]
[1763420243863,0.30901012,3033.9,3033.8,0.9452]
[1763420244052,0.89029678,3034.7,3033.8,0.9452]
[1763420244053,0.30901012,3034.6,3033.8,0.9452]
[1763420244257,0.405504,3034.4,3033.9,0.4931]
[1763420244453,0.405504,3034.2,3033.9,0.4931]
[1763420244650,0.30901012,3034.1,3033.9,0.4931]
[1763420245069,0.30901012,3034.1,3034.0,0.4511]
[1763420245555,0.30901012,3034.1,3034.0,0.9442]
[1763420249997,0.405504,3034.2,3034.0,0.9442]
[1763420250194,0.71451412,3034.2,3034.1,0.6839]
[1763420250358,0.405504,3034.2,3034.1,1.135]
[1763420250693,0.405504,3034.4,3034.1,1.135]
[1763420250881,0.002,3034.5,3034.3,0.4511]
[1763420251078,0.002,3034.5,3034.4,0.4511]
[1763420251280,0.31119069,3034.5,3034.4,0.4511]
[1763420251591,0.31119069,3034.5,3034.4,0.9442]
[1763420251894,0.71669469,3034.5,3034.4,0.9442]
[1763420255199,0.71669469,3034.5,3034.1,0.1908]
[1763420255200,0.405504,3034.4,3034.1,0.1908]
[1763420255499,0.405504,3034.2,3034.1,0.1908]
[1763420255700,0.71469469,3034.2,3033.8,0.001]
[1763420255901,0.71469469,3034.2,3033.9,0.4652]
[1763420256081,0.71469469,3034.2,3034.1,0.6696]
[1763420256616,0.30919069,3034.4,3034.1,1.1348]
[1763420256812,0.405504,3034.2,3034.1,0.6696]
[1763420256976,0.405504,3034.2,3034.1,0.1944]
[1763420257309,0.71469469,3034.3,3034.1,1.1348]
[1763420257520,0.71469469,3034.2,3034.1,0.6596]
[1763420257728,0.71469469,3034.2,3034.1,0.1944]
[1763420258035,0.71469469,3034.2,3034.1,0.6696]
[1763420258310,0.405504,3034.2,3034.1,1.1348]
[1763420258678,0.71469469,3034.2,3034.1,1.1348]
[1763420258875,0.405504,3034.2,3034.1,1.1348]
[1763420259314,0.71469469,3034.2,3034.1,1.1348]
[1763420259609,0.405504,3034.2,3034.1,1.1348]
[1763420259998,0.71469469,3034.2,3034.1,1.1348]
[1763420260213,0.405504,3034.2,3034.1,1.1348]
[1763420260799,0.405504,3034.2,3033.8,0.001]
[1763420261109,0.405504,3034.2,3034.1,0.6696]
[1763420261110,0.71469469,3034.2,3034.1,0.6696]
[1763420261475,0.71469469,3034.2,3034.1,1.1348]
[1763420261675,0.405504,3034.2,3034.1,1.1348]
[1763420261877,0.405504,3034.1,3033.8,0.001]
[1763420262078,6.79552883,3033.9,3033.8,0.001]
[1763420262286,7.89888187,3033.9,3033.8,0.001]
[1763420262493,1.51365704,3033.9,3033.8,0.001]
[1763420262690,0.71469469,3033.9,3033.8,0.4762]
[1763420262916,0.405504,3033.9,3033.8,0.4762]
[1763420263219,0.71469469,3033.9,3033.8,0.9414]
[1763420263711,0.405504,3033.9,3033.8,0.9414]
[1763420264102,0.71469469,3033.9,3033.8,0.9414]
[1763420264718,0.405504,3033.9,3033.8,0.9414]
[1763420264905,0.71469469,3033.9,3033.8,0.9414]
[1763420265102,0.405504,3033.9,3033.8,0.9414]
[1763420265305,0.71469469,3033.9,3033.8,0.9414]
[1763420265923,0.405504,3033.9,3033.8,0.9414]
[1763420266114,0.71469469,3033.9,3033.8,0.9414]
[1763420266899,0.78459469,3033.9,3033.8,0.001]
[1763420267106,0.88385342,3033.9,3033.8,0.9414]
[1763420267314,0.71469469,3033.9,3033.8,0.9414]
[1763420268329,0.88733153,3033.9,3033.8,0.4762]
[1763420269332,0.95723153,3033.9,3033.8,0.001]
[1763420270541,0.88733153,3033.9,3033.8,0.4762]
[1763420271332,1.06676395,3033.9,3033.8,0.4762]
[1763420272412,0.88733153,3033.9,3033.8,0.9414]
[1763420279717,0.48182753,3033.9,3033.8,0.9414]
[1763420279912,0.48182753,3033.9,3033.8,0.4762]
[1763420280133,0.48182753,3033.9,3033.8,0.9414]
[1763420280481,0.48231655,3033.9,3033.8,0.9414]
[1763420280763,0.30967971,3033.9,3033.8,0.9414]
[1763420281052,1.18688371,3033.9,3033.8,0.001]
[1763420282715,2.04255383,3033.9,3033.8,0.001]
[1763420283051,2.12015383,3033.9,3033.8,0.001]
[1763420284304,3.74091492,3033.9,3033.8,0.001]
[1763420286108,3.19161492,3033.9,3033.8,0.001]
[1763420286390,2.3359448,3033.9,3033.8,0.001]
[1763420286590,2.4109448,3033.9,3033.8,0.001]
[1763420292269,2.3359448,3033.9,3033.8,0.4634]
[1763420292886,1.62217635,3033.9,3033.8,0.4634]
[1763420293706,2.64532599,3033.9,3033.8,0.001]
[1763420294075,3.11562599,3033.9,3033.8,0.001]
[1763420295208,2.64532599,3033.9,3033.8,0.001]
[1763420297112,2.57032599,3033.9,3033.8,0.9585]
[1763420297273,2.33647817,3033.9,3033.8,0.9585]
[1763420298408,2.33647817,3033.9,3033.8,0.4634]
[1763420303630,0.3100143,3033.9,3033.8,0.9458]
[1763420307254,0.3100143,3033.9,3033.8,0.4634]
[1763420307422,0.3100143,3033.9,3033.8,0.9458]
[1763420309531,0.3100143,3033.9,3033.8,0.001]
[1763420310162,0.7155183,3033.9,3033.8,0.001]
[1763420313530,0.7854183,3033.9,3033.8,0.001]
[1763420315845,0.7155183,3033.9,3033.8,0.001]
[1763420317080,0.7155183,3033.9,3033.8,0.9809]
[1763420317283,0.3100143,3033.9,3033.8,0.9809]
[1763420321892,0.3100143,3033.9,3033.8,1.2909143]
[1763420337344,0.002,3034.0,3033.8,1.2909143]
[1763420337527,0.002,3034.2,3033.9,1.74771017]
[1763420337839,0.002,3034.9,3034.7,0.4992]
[1763420338042,0.002,3034.9,3034.8,1.40619264]
[1763420338336,0.002,3035.4,3034.9,0.4992]
[1763420338503,0.002,3035.4,3035.1,0.90699264]
[1763420338701,0.002,3035.4,3035.1,1.52605801]
[1763420338925,0.002,3035.4,3035.1,1.1776]
[1763420339716,0.002,3035.4,3034.8,0.13228497]
[1763420339900,0.002,3035.4,3035.1,0.4992]
[1763420340101,0.002,3035.4,3035.1,1.1776]
[1763420341409,0.002,3035.4,3034.8,0.13228497]
[1763420341410,0.405504,3035.1,3034.8,0.13228497]
[1763420341634,0.686004,3034.9,3034.8,0.13228497]
[1763420342137,1.45869467,3034.9,3033.8,0.001]
[1763420342328,0.405504,3034.7,3034.3,0.4807]
[1763420342634,0.71409467,3034.7,3034.3,0.4807]
[1763420342835,0.0774,3034.4,3034.3,0.4807]
[1763420343302,0.0774,3034.4,3033.8,0.001]
[1763420343503,0.5453,3034.4,3033.8,0.001]
[1763420343719,0.5453,3034.4,3033.9,0.4679]
[1763420345756,0.3086995,3034.3,3033.9,0.4679]
[1763420346827,0.405504,3034.5,3033.9,0.947]
[1763420347031,0.405504,3034.4,3033.9,0.947]
[1763420347639,0.7142035,3034.5,3033.9,0.4679]
[1763420347957,0.494604,3034.0,3033.8,0.001]
[1763420348161,0.46,3033.9,3033.8,0.4689]
[1763420348347,0.85792676,3033.9,3033.8,0.4689]
[1763420349059,0.0891,3033.9,3033.8,0.4689]
[1763420349255,0.57813558,3034.0,3033.8,1.4357]
[1763420349429,0.57813558,3034.0,3033.8,0.4689]
[1763420351565,1.25976245,3033.9,3033.8,0.4689]
[1763420351739,1.25976245,3033.9,3033.8,0.001]
[1763420352483,0.30885845,3033.9,3033.8,0.9678]
[1763420352659,0.17263158,3034.0,3033.8,0.9678]
[1763420352846,0.17263158,3034.0,3033.9,0.9668]
[1763420353283,0.17263158,3034.0,3033.9,0.4877]
[1763420353662,0.26173158,3034.0,3033.8,0.001]
[1763420354202,0.17263158,3034.0,3033.8,0.001]
[1763420354984,0.17263158,3034.0,3033.9,0.4877]
[1763420356599,0.17263158,3034.0,3033.9,0.9668]
[1763420356799,0.17263158,3034.0,3033.9,1.70229874]
[1763420358681,0.17263158,3034.0,3033.9,1.22319874]
[1763420358883,0.17263158,3034.0,3033.8,0.001]
[1763420359191,0.462604,3033.9,3033.8,0.001]
[1763420359463,0.77140753,3033.9,3033.8,0.001]
[1763420359581,1.25940753,3033.9,3033.8,0.001]
[1763420360612,0.77140753,3033.9,3033.8,0.001]
[1763420360817,0.71430753,3033.9,3033.8,0.4846]
[1763420360983,0.71430753,3033.9,3033.8,0.9404]
[1763420361180,0.17263158,3034.0,3033.8,0.9404]
[1763420361385,0.17263158,3034.0,3033.9,0.9394]
[1763420361688,0.17263158,3034.0,3033.8,0.001]
[1763420361689,0.890804,3033.9,3033.8,0.001]
[1763420361988,1.26368508,3033.9,3033.8,0.001]
[1763420363930,1.19958508,3033.9,3033.8,0.001]
[1763420364128,1.26368508,3033.9,3033.8,0.001]
[1763420368940,1.26368508,3033.9,3033.7,0.001]
[1763420368941,1.97541512,3033.9,3033.7,0.001]
[1763420369098,2.19021979,3033.8,3033.7,0.001]
[1763420369603,2.12611979,3033.8,3033.7,0.001]
[1763420369909,1.47848975,3033.8,3033.7,0.001]
[1763420371239,1.41438975,3033.8,3033.7,0.001]
[1763420372938,0.30878108,3033.8,3033.7,0.9404]
[1763420373140,0.30878108,3033.9,3033.7,0.9404]
[1763420373331,0.30878108,3033.9,3033.7,0.13337778]
[1763420373568,0.30878108,3033.9,3033.8,0.4836]
[1763420373868,0.30878108,3033.9,3033.8,0.9394]
[1763420374266,0.002,3035.1,3033.8,0.9394]
[1763420374267,0.4943,3035.1,3033.8,0.9394]
[1763420374435,0.17262187,3034.4,3033.9,0.9394]
[1763420374636,0.30933112,3034.3,3033.9,0.9394]
[1763420374832,0.30933112,3034.2,3034.0,0.4558]
[1763420375057,0.30933112,3034.1,3034.0,0.4558]
[1763420375335,0.71483512,3034.5,3034.0,0.9394]
[1763420375537,0.30933112,3034.4,3034.1,0.189]
[1763420375733,0.30933112,3034.3,3034.1,0.189]
[1763420375932,0.30933112,3034.2,3034.1,0.189]
[1763420376347,0.30933112,3034.2,3034.1,0.6517]
[1763420377368,0.30933112,3034.2,3033.7,0.59017778]
[1763420377534,0.30933112,3034.1,3033.7,0.59017778]
[1763420377867,0.405504,3034.3,3033.8,0.4568]
[1763420378068,0.30933112,3034.2,3034.0,0.4627]
[1763420378229,0.30933112,3034.1,3034.0,0.4627]
[1763420378435,0.30933112,3034.2,3034.0,0.9195]
[1763420378632,0.30933112,3034.1,3034.0,0.9195]
[1763420378836,0.405504,3034.0,3033.7,0.001]
[1763420379042,0.880604,3033.8,3033.7,0.406504]
[1763420379272,1.18993512,3033.8,3033.7,0.406504]
[1763420379465,0.71483512,3033.8,3033.7,0.001]
[1763420379652,0.71483512,3034.2,3033.7,0.4637]
[1763420379857,0.405504,3034.0,3033.7,0.4637]
[1763420380166,0.30933112,3033.9,3033.7,0.4637]
[1763420382266,0.30933112,3033.9,3033.8,0.9195]
[1763420382436,0.17262096,3034.6,3033.8,0.9195]
[1763420382437,0.30933112,3034.5,3033.8,0.9195]
[1763420382640,0.405504,3034.3,3033.9,0.4568]
[1763420382972,0.30933112,3034.2,3033.9,0.4568]
[1763420383170,0.30933112,3034.1,3033.9,0.4568]
[1763420383364,0.30933112,3034.2,3033.9,0.4568]
[1763420383677,0.30933112,3034.1,3034.0,0.4627]
[1763420383871,0.405504,3034.3,3033.9,0.4568]
[1763420384064,0.30933112,3034.2,3034.0,0.4627]
[1763420384371,0.30933112,3034.1,3034.0,0.4627]
[1763420384553,0.30933112,3034.2,3034.0,0.4627]
[1763420384875,0.78443112,3034.1,3033.7,0.001]
[1763420385055,0.405504,3034.3,3033.7,0.001]
[1763420385056,0.405504,3033.9,3033.7,0.001]
[1763420385544,0.30933112,3034.1,3033.7,0.001]
[1763420385743,0.405504,3033.9,3033.7,0.001]
[1763420385943,0.30933112,3033.9,3033.7,0.001]
[1763420386148,0.30933112,3034.1,3033.7,0.001]
[1763420386360,0.405504,3034.2,3033.7,0.001]
[1763420386361,0.405504,3033.9,3033.7,0.001]
[1763420386558,0.30933112,3033.9,3033.7,0.001]
[1763420386764,0.30933112,3034.1,3033.7,0.001]
[1763420387049,0.405504,3033.9,3033.7,0.001]
[1763420387251,0.30933112,3033.9,3033.7,0.001]
[1763420387451,0.30933112,3034.1,3033.7,0.001]
[1763420387644,0.405504,3033.9,3033.7,0.001]
[1763420387872,0.71483512,3033.9,3033.7,0.001]
[1763420388059,0.405504,3034.2,3033.7,0.001]
[1763420388261,0.30937281,3034.1,3033.7,0.001]
[1763420388477,0.405504,3033.9,3033.7,0.001]
[1763420388670,0.71487681,3033.9,3033.7,0.001]
[1763420388878,0.71487681,3033.8,3033.7,0.001]
[1763420389070,0.405504,3033.8,3033.7,0.001]
[1763420389374,0.405504,3033.8,3033.7,0.4637]
[1763420390296,0.71487681,3033.8,3033.7,0.4637]
[1763420390478,0.79057681,3033.8,3033.7,0.001]
[1763420390653,0.71487681,3033.8,3033.7,0.4637]
[1763420390848,0.405504,3033.8,3033.7,0.4637]
[1763420391077,0.405504,3033.8,3033.7,0.001]
[1763420391357,0.405504,3033.8,3033.7,0.4637]
[1763420391592,0.71487681,3033.8,3033.7,0.4637]
[1763420391894,0.405504,3033.8,3033.7,0.4637]
[1763420392047,0.30937281,3034.0,3033.7,0.4637]
[1763420392251,0.30937281,3033.9,3033.8,0.4568]
[1763420392566,0.405504,3034.2,3033.8,0.4568]
[1763420392779,0.30937281,3034.1,3033.8,0.9195]
[1763420393077,0.30937281,3034.0,3033.8,0.4568]
[1763420393387,0.30937281,3033.9,3033.7,0.001]
[1763420393695,0.30937281,3034.1,3033.7,0.001]
[1763420393855,0.30937281,3034.0,3033.8,0.9195]
[1763420394183,0.30937281,3034.1,3033.8,0.4568]
[1763420394353,0.30937281,3034.3,3033.9,0.4568]
[1763420394554,0.30937281,3034.2,3034.0,0.4627]
[1763420394880,0.30937281,3034.1,3034.0,0.4627]
[1763420395187,0.30937281,3034.3,3034.0,0.9195]
[1763420395382,0.30937281,3034.2,3034.0,0.9195]
[1763420395591,0.30937281,3034.1,3034.0,0.9195]
[1763420395786,0.30937281,3034.3,3034.0,0.9195]
[1763420395994,0.30937281,3034.2,3034.0,0.9195]
[1763420396199,0.30937281,3034.1,3034.0,0.4627]
[1763420396384,0.30937281,3034.1,3033.7,0.001]
[1763420396560,0.002,3034.4,3034.0,0.4627]
[1763420396767,0.30942122,3034.3,3033.7,0.001]
[1763420396966,0.30942122,3034.2,3033.8,0.4568]
[1763420397271,0.30942122,3034.1,3033.8,0.4568]